bitfinex-derivatives/quotes_SOLF0:USTF0_20250929
["timestamp","ask_amount","ask_price","bid_price","bid_amount"]
[1759115688256,4.2997,209.25,209.16,2.18803679]
[1759115689262,4.2999,209.24,209.16,2.18803679]
[1759115689660,11.7499,209.24,209.16,2.18803679]
[1759115693870,4.3001,209.23,209.16,2.18803679]
[1759115694369,4.3001,209.23,209.15,205.58429705]
[1759115696466,11.6503,209.22,209.15,7.4]
[1759115696667,7.35,209.24,209.12,7.52]
[1759115697561,4.3005,209.21,209.12,7.52]
[1759115697766,7.35,209.2,209.12,7.52]
[1759115700869,7.35,209.2,209.12,11.822]
[1759115701666,7.35,209.2,209.12,4.302]
[1759115701866,11.6499,209.23,209.15,7.52]
[1759115702067,7.35,209.23,209.15,7.52]
[1759115703668,7.35,209.23,209.15,11.8214]
[1759115709678,7.35,209.23,209.16,4.3012]
[1759115710075,7.35,209.23,209.17,7.52]
[1759115710578,7.35,209.23,209.17,11.821]
[1759115710967,7.35,209.26,209.2,4.3004]
[1759115711170,7.35,209.26,209.21,7.52]
[1759115711475,7.35,209.33,209.21,7.52]
[1759115712376,7.95,209.31,209.21,7.52]
[1759115712580,4.2987,209.3,209.21,7.52]
[1759115712775,7.95,209.29,209.21,7.52]
[1759115713578,7.95,209.29,209.21,12.87468681]
[1759115713774,7.95,209.29,209.22,7.63]
[1759115714378,7.95,209.29,209.23,4.2998]
[1759115714872,69.05143679,209.31,209.19,17.28538681]
[1759115715070,7.95,209.3,209.19,11.9307]
[1759115715274,69.05143679,209.31,209.19,11.9307]
[1759115715672,7.95,209.3,209.19,11.9307]
[1759115715872,7.95,209.25,209.19,11.9307]
[1759115716072,7.95,209.25,209.19,7.63]
[1759115718385,9.35296836,209.25,209.17,9.65578681]
[1759115718884,4.2998,209.24,209.17,5.35468681]
[1759115719285,7.95,209.23,209.17,5.35468681]
[1759115719588,12.2501,209.23,209.17,5.35468681]
[1759115719785,7.95,209.23,209.16,12.98468681]
[1759115720091,9.35296836,209.23,209.16,12.98468681]
[1759115720788,7.95,209.23,209.16,12.98468681]
[1759115721488,12.2501,209.23,209.16,12.98468681]
[1759115722084,4.3004,209.21,209.16,12.98468681]
[1759115722283,7.95,209.2,209.14,5.35468681]
[1759115722589,7.95,209.2,209.13,14.38765517]
[1759115722988,7.95,209.2,209.14,5.35468681]
[1759115724190,7.95,209.2,209.16,7.95]
[1759115728192,7.95,209.2,209.16,13.30468681]
[1759115729896,7.95,209.2,209.17,7.95]
[1759115730197,74.8086,209.17,209.08,7.95]
[1759115730397,7.9,209.13,209.08,7.95]
[1759115730694,7.9,209.13,209.05,15.93633164]
[1759115731088,7.9,209.13,209.06,7.98633164]
[1759115731285,7.9,209.13,209.06,14.08029966]
[1759115731492,7.9,209.13,209.05,7.95]
[1759115731798,12.2021,209.13,209.05,7.95]
[1759115733395,4.3024,209.12,209.05,7.95]
[1759115735101,7.9,209.13,209.06,1.40296836]
[1759115735299,7.9,209.13,209.07,7.95]
[1759115736503,4.3023,209.12,209.06,99.72]
[1759115737902,7.9,209.13,209.07,7.95]
[1759115738499,7.9,209.13,209.08,117.18]
[1759115738808,7.9,209.15,209.09,7.95]
[1759115739706,12.2021,209.13,209.09,7.95]
[1759115740402,4.3021,209.13,209.09,7.95]
[1759115740600,7.9,209.12,209.09,7.95]
[1759115744411,4.3024,209.11,209.07,117.08]
[1759115744606,12.2024,209.11,209.07,125.03]
[1759115745311,12.2024,209.11,209.07,7.95]
[1759115745621,12.2024,209.11,209.07,116.17]
[1759115746314,12.2024,209.11,209.07,108.22]
[1759115746609,12.2024,209.11,209.07,124.99]
[1759115746806,4.3024,209.11,209.07,117.04]
[1759115747019,4.3024,209.11,209.08,7.95]
[1759115747513,12.2024,209.11,209.08,7.95]
[1759115750314,1.40296836,209.13,209.04,116.98]
[1759115750614,7.9,209.12,209.04,116.98]
[1759115750914,7.9,209.12,209.05,7.95]
[1759115752717,4.3025,209.11,209.05,7.95]
[1759115753917,4.3025,209.11,209.05,22.04816139]
[1759115756521,12.1727,209.1,209.06,7.31]
[1759115758721,12.1727,209.1,209.04,116.98]
[1759115758921,4.3027,209.1,209.06,7.31]
[1759115759120,7.87,209.09,209.06,124.23]
[1759115759623,7.87,209.09,209.07,7.31]
[1759115761424,7.87,209.09,209.07,56.47]
[1759115761619,4.3023,209.12,209.07,49.16]
[1759115761925,4.3023,209.12,209.08,7.31]
[1759115762325,4.3023,209.12,209.07,81.98]
[1759115762527,7.87,209.1,209.07,89.29]
[1759115762826,7.87,209.1,209.08,7.31]
[1759115763426,12.1725,209.11,209.08,7.31]
[1759115764330,7.87,209.2,209.08,8.71296836]
[1759115764532,76.17126836,209.2,209.11,7.31]
[1759115764829,1.25890844,209.21,209.08,7.31]
[1759115764830,7.87,209.15,209.08,7.31]
[1759115765025,7.87,209.15,209.09,81.7]
[1759115765418,4.3021,209.13,209.09,81.7]
[1759115765623,7.87,209.12,209.09,89.01]
[1759115765825,7.87,209.12,209.09,7.31]
[1759115766225,1.40296836,209.16,209.09,7.31]
[1759115766226,4.3015,209.16,209.09,7.31]
[1759115768632,7.87,209.17,209.09,4.3026]
[1759115768832,7.87,209.17,209.1,7.31]
[1759115769229,7.87,209.17,209.12,7.31]
[1759115769422,4.3013,209.17,209.11,1.40296836]
[1759115769627,4.3013,209.17,209.11,8.71296836]
[1759115770536,4.3007,209.2,209.11,8.71296836]
[1759115771438,9.12890844,209.21,209.15,7.31]
[1759115771731,7.87,209.21,209.16,7.31]
[1759115771930,7.87,209.22,209.15,124.29]
[1759115772326,66.8778,209.27,209.16,8.70296836]
[1759115772631,7.4,209.26,209.19,7.3]
[1759115775235,7.4,209.26,209.2,1.40296836]
[1759115775837,7.4,209.26,209.21,7.3]
[1759115776033,7.4,209.26,209.2,1.40296836]
[1759115776432,7.4,209.31,209.25,1.40296836]
[1759115776636,7.4,209.31,209.25,8.70296836]
[1759115777839,7.4,209.31,209.25,7.3]
[1759115778341,7.4,209.32,209.24,116.96]
[1759115779544,7.4,209.32,209.25,7.3]
[1759115780843,7.4,209.32,209.25,21.84471741]
[1759115781344,7.4,209.32,209.26,116.96]
[1759115781642,7.4,209.32,209.27,7.3]
[1759115781942,4.2974,209.36,209.26,116.96]
[1759115782143,7.4,209.35,209.27,4.2991]
[1759115782337,7.4,209.35,209.28,7.3]
[1759115784240,11.6975,209.35,209.28,7.3]
[1759115789944,11.6975,209.35,209.28,124.14]
[1759115791046,11.6975,209.35,209.28,7.3]
[1759115791246,11.6975,209.35,209.28,124.12]
[1759115794243,11.6975,209.35,209.28,7.3]
[1759115794439,7.4,209.35,209.3,7.28]
[1759115794748,7.94,209.37,209.3,7.28]
[1759115794949,7.94,209.37,209.3,124.04]
[1759115795647,4.2974,209.36,209.3,124.04]
[1759115798050,12.2376,209.35,209.31,7.28]
[1759115798250,12.2376,209.35,209.3,116.76]
[1759115798648,12.2376,209.35,209.27,7.28]
[1759115798951,12.2376,209.35,209.29,7.28]
[1759115799147,12.2376,209.35,209.3,24.9]
[1759115799352,12.2376,209.35,209.3,69.28]
[1759115799649,12.2376,209.35,209.31,7.28]
[1759115800153,12.2376,209.35,209.26,6.48994929]
[1759115800452,12.2376,209.35,209.31,7.28]
[1759115800654,12.2376,209.35,209.27,7.28]
[1759115800855,12.2376,209.35,209.29,7.28]
[1759115801950,12.2376,209.35,209.3,116.66]
[1759115802256,7.94,209.34,209.31,7.28]
[1759115802554,7.94,209.34,209.3,116.64]
[1759115803155,7.94,209.34,209.31,7.28]
[1759115803355,7.94,209.34,209.26,6.48994929]
[1759115803555,7.94,209.34,209.27,63.48]
[1759115803855,7.94,209.34,209.29,7.28]
[1759115804157,7.94,209.32,209.26,7.28]
[1759115804358,66.8475,209.36,209.27,111.72]
[1759115804554,66.8475,209.36,209.27,119.0]
[1759115804746,7.94,209.35,209.27,119.0]
[1759115804953,66.8475,209.36,209.27,119.0]
[1759115805152,7.94,209.35,209.27,119.0]
[1759115805655,4.2984,209.31,209.28,7.28]
[1759115805958,7.94,209.29,209.21,7.28]
[1759115806158,7.94,209.29,209.21,14.36975765]
[1759115806359,7.94,209.29,209.22,7.28]
[1759115806562,7.94,209.35,209.22,7.28]
[1759115806957,66.8472,209.36,209.23,114.58]
[1759115807158,7.94,209.35,209.24,7.28]
[1759115807557,4.2983,209.31,209.24,7.28]
[1759115808255,4.2983,209.31,209.26,7.28]
[1759115808461,4.2983,209.31,209.25,116.84]
[1759115808661,7.94,209.32,209.26,7.28]
[1759115808959,4.2979,209.33,209.26,7.28]
[1759115809261,4.2979,209.33,209.26,47.04]
[1759115809660,4.2979,209.33,209.26,7.28]
[1759115809861,4.2979,209.33,209.26,124.1]
[1759115810459,4.2979,209.33,209.27,7.28]
[1759115811062,4.2979,209.33,209.28,116.8]
[1759115811357,4.2979,209.33,209.29,7.28]
[1759115811559,4.2979,209.33,209.28,116.8]
[1759115812069,4.2979,209.33,209.29,7.28]
[1759115812667,4.2979,209.33,209.28,116.78]
[1759115812865,4.2979,209.33,209.29,7.28]
[1759115813164,12.2379,209.33,209.29,7.28]
[1759115813754,12.2379,209.33,209.29,7.56]
[1759115814266,12.2379,209.33,209.28,116.78]
[1759115814468,12.2379,209.33,209.29,7.56]
[1759115814662,7.36,209.32,209.29,7.56]
[1759115814968,7.36,209.32,209.28,116.78]
[1759115815169,4.2979,209.33,209.28,116.78]
[1759115815368,4.2979,209.33,209.29,7.56]
[1759115815765,4.2979,209.33,209.28,116.78]
[1759115816169,4.2979,209.33,209.29,7.56]
[1759115816371,4.2979,209.33,209.28,116.78]
[1759115817074,11.6579,209.33,209.29,7.56]
[1759115817471,11.6579,209.33,209.28,116.78]
[1759115817771,11.6579,209.33,209.29,7.56]
[1759115818369,11.6579,209.33,209.3,7.56]
[1759115818867,4.2975,209.35,209.3,7.56]
[1759115819175,11.6575,209.35,209.3,7.56]
[1759115819369,11.6575,209.35,209.29,102.28]
[1759115819568,11.6575,209.35,209.3,7.56]
[1759115820267,11.6575,209.35,209.29,102.28]
[1759115820461,11.6575,209.35,209.3,7.56]
[1759115820872,4.2971,209.37,209.3,7.56]
[1759115821168,4.2971,209.37,209.29,102.28]
[1759115821169,7.36,209.37,209.29,116.68]
[1759115821773,11.6578,209.34,209.3,7.56]
[1759115823062,11.6578,209.34,209.29,49.0]
[1759115823467,4.2978,209.34,209.3,7.56]
[1759115823668,4.2978,209.34,209.29,49.0]
[1759115823872,4.2978,209.34,209.3,7.56]
[1759115824372,11.6578,209.34,209.3,7.56]
[1759115824572,11.6578,209.34,209.29,49.0]
[1759115824770,11.6578,209.34,209.3,7.56]
[1759115824972,11.6578,209.34,209.29,49.0]
[1759115825173,11.6578,209.34,209.3,7.56]
[1759115826073,11.6578,209.34,209.29,49.0]
[1759115826274,11.6578,209.34,209.3,7.56]
[1759115826472,11.6578,209.34,209.29,49.0]
[1759115826874,11.6578,209.34,209.3,7.56]
[1759115827177,11.6578,209.34,209.29,49.0]
[1759115827577,11.6578,209.34,209.3,7.56]
[1759115829070,11.6578,209.34,209.29,49.0]
[1759115829474,11.6578,209.34,209.3,7.56]
[1759115829778,11.6578,209.34,209.29,49.0]
[1759115829977,11.6578,209.34,209.3,7.56]
[1759115830186,7.36,209.33,209.3,7.56]
[1759115830478,7.36,209.33,209.27,7.56]
[1759115832379,7.37,209.36,209.28,8.0]
[1759115833685,7.37,209.36,209.29,8.0]
[1759115834284,7.37,209.36,209.29,124.62]
[1759115834587,7.37,209.36,209.29,12.2985]
[1759115834882,7.37,209.36,209.3,8.0]
[1759115835283,7.37,209.36,209.3,81.48]
[1759115838394,11.6674,209.36,209.3,81.48]
[1759115838891,11.6674,209.36,209.3,8.0]
[1759115842193,4.2976,209.35,209.3,8.0]
[1759115843192,7.37,209.34,209.3,8.0]
[1759115843590,7.37,209.34,209.29,120.9185]
[1759115843785,7.37,209.34,209.3,7.86]
[1759115843986,4.2971,209.37,209.3,7.86]
[1759115844494,7.3,209.41,209.32,7.86]
[1759115844693,7.3,209.41,209.35,7.86]
[1759115845595,11.5963,209.41,209.35,7.86]
[1759115849188,4.2966,209.4,209.35,7.86]
[1759115849391,7.3,209.39,209.35,7.86]
[1759115849791,4.2966,209.4,209.35,7.86]
[1759115849990,7.3,209.39,209.35,7.86]
[1759115850189,4.2966,209.4,209.35,7.86]
[1759115850792,7.3,209.39,209.35,7.86]
[1759115851396,7.3,209.38,209.35,7.86]
[1759115851596,4.2968,209.39,209.35,7.86]
[1759115851902,7.3,209.38,209.35,7.86]
[1759115852496,7.3,209.38,209.26,7.86]
[1759115852497,7.3,209.35,209.26,7.86]
[1759115852798,7.3,209.31,209.23,7.86]
[1759115852993,4.2986,209.3,209.23,7.86]
[1759115853495,1.40153698,209.3,209.21,14.47661957]
[1759115853700,1.40153698,209.3,209.2,1.40153698]
[1759115853899,7.3,209.29,209.2,1.40153698]
[1759115854095,7.3,209.29,209.21,7.86]
[1759115854400,7.3,209.29,209.21,21.98034739]
[1759115854603,4.2993,209.27,209.21,21.98034739]
[1759115855299,7.3,209.29,209.21,21.98034739]
[1759115855499,7.3,209.29,209.22,1.40153698]
[1759115856102,4.299,209.28,209.22,1.40153698]
[1759115858690,4.2985,209.31,209.23,7.86]
[1759115858894,11.5985,209.31,209.25,7.86]
[1759115859299,66.8732,209.28,209.21,14.12034739]
[1759115859499,7.3,209.27,209.19,1.40153698]
[1759115860200,7.3,209.27,209.19,15.68236087]
[1759115860502,7.3,209.26,209.19,14.28082389]
[1759115860692,7.3,209.23,209.19,7.86]
[1759115862401,7.3,209.23,209.18,243.53234887]
[1759115862603,7.3,209.23,209.19,7.86]
[1759115862899,7.3,209.23,209.2,7.86]
[1759115863493,7.3,209.28,209.21,9.26153698]
[1759115864701,11.5991,209.28,209.21,9.26153698]
[1759115865002,7.3,209.28,209.18,1.40153698]
[1759115865200,68.27223698,209.29,209.19,116.74]
[1759115865399,7.3,209.26,209.19,116.74]
[1759115866705,4.2998,209.25,209.19,116.74]
[1759115868203,11.6,209.23,209.18,15.79485302]
[1759115868397,11.6,209.23,209.18,140.39485302]
[1759115868903,7.3,209.23,209.19,7.86]
[1759115869105,4.2996,209.25,209.19,7.86]
[1759115869806,7.3,209.26,209.19,7.86]
[1759115871608,7.3,209.26,209.19,124.54]
[1759115871907,7.3,209.26,209.2,1.40153698]
[1759115872112,11.5995,209.26,209.2,1.40153698]
[1759115875613,7.3,209.26,209.2,1.40153698]
[1759115876305,7.98,209.3,209.23,7.3]
[1759115876512,7.98,209.3,209.24,118.08153698]
[1759115878515,4.298,209.33,209.27,7.3]
[1759115878918,4.298,209.33,209.27,123.98]
[1759115879116,68.09881008,209.45,209.3,1.40153698]
[1759115879310,7.98,209.39,209.31,7.3]
[1759115880514,7.98,209.37,209.28,1.40153698]
[1759115880921,464.32,209.44,209.23,62.0]
[1759115880922,7.98,209.43,209.33,1.40153698]
[1759115881217,4.2967,209.4,209.33,8.70153698]
[1759115881414,7.98,209.41,209.35,8.70153698]
[1759115881610,7.98,209.41,209.35,37.08153698]
[1759115882911,7.98,209.42,209.33,1.40153698]
[1759115883917,7.98,209.39,209.33,1.40153698]
[1759115885216,7.98,209.39,209.34,7.3]
[1759115885417,12.2761,209.42,209.34,7.3]
[1759115885615,7.98,209.4,209.31,1.40153698]
[1759115886214,4.2969,209.39,209.31,1.40153698]
[1759115886516,7.98,209.38,209.31,1.40153698]
[1759115886718,4.2963,209.42,209.34,7.3]
[1759115887221,7.98,209.43,209.35,1.40153698]
[1759115888522,12.2759,209.43,209.35,1.40153698]
[1759115889223,7.98,209.4,209.34,7.3]
[1759115890519,7.98,209.4,209.36,7.3]
[1759115891517,4.2963,209.41,209.36,7.3]
[1759115891822,7.98,209.4,209.36,7.3]
[1759115892024,1.40153698,209.43,209.35,1.40153698]
[1759115892233,12.0758,209.44,209.35,1.40153698]
[1759115894633,12.0758,209.44,209.36,7.75]
[1759115897835,12.0758,209.44,209.37,1.40153698]
[1759115899743,12.0758,209.44,209.38,7.75]
[1759115901444,12.0758,209.44,209.38,21.96774189]
[1759115904649,7.78,209.44,209.38,21.96774189]
[1759115904939,66.8226,209.44,209.32,87.14]
[1759115905237,7.26,209.41,209.31,7.74]
[1759115906645,11.557,209.38,209.31,7.74]
[1759115907232,7.26,209.35,209.31,7.74]
[1759115907436,7.26,209.35,209.28,2.18807919]
[1759115907437,7.26,209.35,209.28,124.42]
[1759115908029,7.26,209.35,209.28,138.94257167]
[1759115908241,11.5569,209.39,209.29,7.74]
[1759115909133,7.26,209.39,209.29,7.74]
[1759115909338,7.26,209.36,209.28,14.52257167]
[1759115909537,69.03247919,209.37,209.25,7.74]
[1759115909538,7.26,209.34,209.25,7.74]
[1759115910239,7.26,209.28,209.21,6.48847919]
[1759115910444,7.26,209.28,209.22,7.74]
[1759115911747,7.26,209.28,209.22,22.3484359]
[1759115912743,7.26,209.28,209.16,7.74]
[1759115912744,74.1344,209.28,209.16,7.74]
[1759115913044,76.32247919,209.28,209.16,7.74]
[1759115913241,11.5599,209.24,209.16,7.74]
[1759115914642,7.26,209.24,209.16,7.74]
[1759115915039,7.26,209.24,209.16,12.0413]
[1759115915238,4.2989,209.29,209.17,7.74]
[1759115915447,7.26,209.28,209.18,78.14]
[1759115915638,7.26,209.28,209.19,7.74]
[1759115916142,7.26,209.28,209.19,22.1111315]
[1759115916342,7.26,209.28,209.19,7.74]
[1759115916546,4.2992,209.27,209.19,7.74]
[1759115917244,7.26,209.28,209.19,7.74]
[1759115918551,11.559,209.28,209.19,7.74]
[1759115919252,11.559,209.28,209.19,21.88463386]
[1759115919444,11.559,209.28,209.19,138.84463386]
[1759115919745,11.5593,209.27,209.19,138.84463386]
[1759115920143,11.5593,209.27,209.19,138.80463386]
[1759115927251,11.5593,209.27,209.19,21.88463386]
[1759115927452,11.5593,209.27,209.2,116.84]
[1759115930055,11.5593,209.27,209.19,21.88463386]
[1759115930254,11.5593,209.27,209.2,116.8]
[1759115930655,11.5593,209.27,209.21,7.74]
[1759115932555,4.2996,209.26,209.21,7.74]
[1759115932759,7.26,209.27,209.19,14.14463386]
[1759115932954,69.06237919,209.28,209.18,7.74]
[1759115933155,7.26,209.25,209.16,33.54]
[1759115933361,7.26,209.25,209.14,7.74]
[1759115933554,7.26,209.25,209.16,7.74]
[1759115933750,7.26,209.25,209.16,21.72178312]
[1759115934059,7.26,209.25,209.16,7.74]
[1759115934254,7.26,209.25,209.16,2.18807919]
[1759115934463,7.26,209.25,209.17,7.21]
[1759115934862,4.2992,209.27,209.17,4.3011]
[1759115935154,4.2992,209.27,209.18,7.21]
[1759115935562,4.2992,209.27,209.19,7.21]
[1759115935860,4.2992,209.27,209.21,7.21]
[1759115939160,4.2988,209.29,209.22,4.3002]
[1759115939360,4.2988,209.29,209.23,7.21]
[1759115939565,7.85,209.31,209.23,7.21]
[1759115940366,12.1484,209.31,209.24,7.21]
[1759115941565,12.1484,209.31,209.24,128.3296]
[1759115941867,7.85,209.31,209.24,128.3296]
[1759115942969,66.8514,209.35,209.17,62.0]
[1759115943166,66.8804,209.26,209.16,14.02644406]
[1759115943468,7.85,209.23,209.14,7.21]
[1759115943869,7.85,209.23,209.15,60.78]
[1759115944166,4.3002,209.22,209.15,60.78]
[1759115946760,4.2997,209.25,209.16,7.21]
[1759115947264,7.85,209.27,209.16,11.5112]
[1759115947462,12.1491,209.27,209.17,7.21]
[1759115947663,12.1491,209.27,209.18,111.24]
[1759115947868,12.1491,209.27,209.19,7.21]
[1759115950165,12.1491,209.27,209.2,117.08]
[1759115950566,7.85,209.27,209.2,117.08]
[1759115950766,7.85,209.27,209.21,117.16]
[1759115952371,4.2988,209.29,209.21,117.16]
[1759115952575,4.2988,209.29,209.22,7.56]
[1759115953678,7.88,209.3,209.22,7.56]
[1759115954777,7.88,209.3,209.22,11.86]
[1759115955674,4.2983,209.32,209.22,4.3]
[1759115955871,4.2983,209.32,209.23,7.56]
[1759115956077,4.2983,209.32,209.23,124.68]
[1759115957579,4.2983,209.32,209.24,4.2997]
[1759115957781,4.2983,209.32,209.25,7.56]
[1759115958879,7.88,209.33,209.25,7.56]
[1759115959070,7.88,209.33,209.25,4.2994]
[1759115959275,4.2977,209.34,209.26,7.56]
[1759115960679,4.2977,209.34,209.26,11.8592]
[1759115960981,4.2977,209.34,209.26,4.2992]
[1759115961184,7.88,209.36,209.27,11.859]
[1759115961488,7.88,209.36,209.28,117.06]
[1759115961982,7.88,209.36,209.29,7.56]
[1759115962287,7.88,209.36,209.3,117.04]
[1759115964388,103.0,209.43,209.32,4.298]
[1759115964389,7.33,209.4,209.32,4.298]
[1759115964695,7.33,209.4,209.34,1.40158187]
[1759115965092,7.33,209.4,209.33,7.89]
[1759115965294,1.40158187,209.4,209.31,23.5]
[1759115965495,7.33,209.39,209.31,23.5]
[1759115965889,7.33,209.39,209.31,9.29158187]
[1759115966400,7.33,209.39,209.3,45.72]
[1759115966401,7.33,209.39,209.33,9.29158187]
[1759115971393,7.33,209.39,209.33,78.43158187]
[1759115971794,7.33,209.39,209.33,7.89]
[1759115972100,7.33,209.4,209.31,26.88158187]
[1759115972295,7.33,209.4,209.31,1.40158187]
[1759115972598,7.33,209.38,209.31,1.40158187]
[1759115973597,7.33,209.38,209.3,79.65]
[1759115973895,7.33,209.38,209.29,1.40158187]
[1759115974104,7.33,209.36,209.28,4.2989]
[1759115974306,7.33,209.38,209.29,9.29158187]
[1759115974600,7.33,209.38,209.29,49.69158187]
[1759115974801,4.2971,209.37,209.3,7.89]
[1759115975805,4.2971,209.37,209.3,125.07]
[1759115976104,11.6275,209.36,209.3,125.05]
[1759115976705,11.6275,209.36,209.3,7.89]
[1759115977004,11.6275,209.36,209.3,125.05]
[1759115977804,7.33,209.41,209.31,7.89]
[1759115978005,8.73158187,209.41,209.33,7.89]
[1759115978304,8.73158187,209.41,209.33,125.09]
[1759115979606,4.2965,209.4,209.33,125.09]
[1759115980603,8.73158187,209.39,209.28,7.89]
[1759115980803,7.33,209.36,209.29,86.5]
[1759115981606,11.6274,209.36,209.29,86.5]
[1759115983103,11.6274,209.36,209.28,4.2989]
[1759115983309,11.6274,209.36,209.29,7.89]
[1759115983812,11.6277,209.35,209.3,58.49]
[1759115984614,11.6277,209.35,209.3,50.6]
[1759115984913,11.6277,209.35,209.31,7.89]
[1759115985420,7.33,209.34,209.26,9.29158187]
[1759115985713,7.33,209.34,209.27,74.44]
[1759115986107,7.33,209.34,209.27,107.7]
[1759115986314,4.2981,209.33,209.27,107.7]
[1759115986505,4.2981,209.33,209.27,117.18]
[1759115986908,4.2981,209.33,209.28,117.18]
[1759115987108,4.2981,209.33,209.29,7.89]
[1759115987711,4.2981,209.33,209.28,117.16]
[1759115987910,4.2981,209.33,209.29,7.89]
[1759115988813,11.6281,209.33,209.28,117.14]
[1759115989019,4.2981,209.33,209.28,117.14]
[1759115989219,7.33,209.32,209.29,7.89]
[1759115990020,4.2981,209.33,209.28,117.14]
[1759115990218,7.33,209.32,209.28,125.03]
[1759115990422,8.73158187,209.32,209.23,7.89]
[1759115990628,8.73158187,209.32,209.24,38.12]
[1759115991727,4.2987,209.3,209.24,38.12]
[1759115992713,4.2989,209.29,209.25,7.89]
[1759115993020,7.33,209.28,209.22,77.68]
[1759115993722,11.6291,209.28,209.21,9.29158187]
[1759115993922,1.40158187,209.28,209.19,7.72]
[1759115994122,7.49,209.27,209.19,124.86]
[1759115994322,7.49,209.27,209.19,126.26158187]
[1759115994323,11.7892,209.27,209.19,126.26158187]
[1759115995525,4.2988,209.29,209.22,7.72]
[1759115997726,4.2988,209.29,209.24,7.72]
[1759115997930,4.2991,209.28,209.2,7.72]
[1759115998130,7.49,209.29,209.22,117.18]
[1759115998833,4.299,209.28,209.22,117.18]
[1759116000231,4.2994,209.26,209.2,7.72]
[1759116001027,4.2994,209.26,209.2,124.9]
[1759116001329,4.2994,209.26,209.2,126.30158187]
[1759116004137,4.2994,209.26,209.2,9.12158187]
[1759116004333,7.49,209.26,209.22,7.72]
[1759116004538,4.299,209.28,209.22,9.12158187]
[1759116004838,4.299,209.28,209.24,7.72]
[1759116005233,4.299,209.28,209.23,117.16]
[1759116005834,4.299,209.28,209.24,7.72]
[1759116006032,1.40158187,209.31,209.24,7.72]
[1759116006033,4.2985,209.31,209.24,7.72]
[1759116006233,7.49,209.33,209.24,9.12158187]
[1759116006536,7.49,209.33,209.26,7.72]
[1759116007738,4.2985,209.31,209.26,7.72]
[1759116008241,4.2985,209.31,209.25,42.3]
[1759116008533,4.2985,209.31,209.26,7.72]
[1759116008739,4.2985,209.31,209.25,42.3]
[1759116008931,4.298,209.33,209.26,9.12158187]
[1759116009137,7.49,209.36,209.26,9.12158187]
[1759116009640,4.2977,209.34,209.26,9.12158187]
[1759116010040,7.49,209.36,209.3,7.72]
[1759116010435,11.7873,209.36,209.3,7.72]
[1759116012841,4.2969,209.38,209.31,1.40158187]
[1759116013042,4.2969,209.38,209.32,7.66]